fUSD/lending_fUSD_20240803
["ID","MTS","AMOUNT","RATE_DAILY","PERIOD"]
[334034027,1722697842881,-155.0,0.00013899,2]
[334034030,1722697842891,-484.76607857,0.00013986,2]
[334034034,1722697842901,-65.79200802,0.00015369,2]
[334034045,1722697842950,-145.08646596,0.00015369,2]
[334034048,1722697842960,-600.0,0.00024053,2]
[334034051,1722697842970,-272.22553404,0.0002498,11]
[334034183,1722697844442,-16663.41501804,0.0002498,11]
[334034184,1722697844453,-313.3815487,0.0002498,11]
[334034186,1722697844468,-7233.04009136,0.0002498,11]
[334034188,1722697844479,-5879.8,0.0002498,11]
[334034191,1722697844513,-1612.32159237,0.0002498,11]
[334034193,1722697844523,-369.04840763,0.0002498,11]
[334034195,1722697844540,-1742.46732169,0.0002498,11]
[334034330,1722697846087,-519.69271657,0.00013896,2]
[334034332,1722697846096,-388.97406479,0.0002498,11]
[334034334,1722697846108,-6429.915,0.0002498,11]
[334034336,1722697846123,-342.57378,0.0002498,11]
[334034339,1722697846134,-567.96560199,0.0002498,11]
[334034341,1722697846145,-322.8916,0.0002498,11]
[334034343,1722697846157,-393.84558329,0.0002498,11]
[334034346,1722697846178,-10581.37964139,0.0002498,11]
[334034348,1722697846189,-594.81,0.0002498,11]
[334034351,1722697846202,-416.0689448,0.0002498,11]
[334034353,1722697846213,-4678.56038959,0.0002498,11]
[334034360,1722697846269,-64820.91018537,0.0002498,11]
[334034385,1722697846502,-603243.31619753,0.0002498,10]
[334034768,1722698174191,171.99117599,5e-05,2]
[334034769,1722698261547,1284.09297727,5e-05,2]
[334034770,1722698265703,685.17544516,5e-05,2]
[334034771,1722698267273,7910.74040158,5e-05,2]
[334034772,1722698267306,205.88850093,5e-05,2]
[334034773,1722698267337,2053.28741474,5e-05,2]
[334034774,1722698267367,1895.53252332,5e-05,2]
[334034775,1722698267395,2378.45031167,5e-05,2]
[334034776,1722698267426,1996.74104309,5e-05,2]
[334034777,1722698267455,1826.76448363,5e-05,2]
[334034778,1722698267485,560.23281441,5e-05,2]
[334034779,1722698268224,155.0,5e-05,2]
[334034780,1722698268771,1193.15530958,5e-05,2]
[334034781,1722698268793,10000.0,5e-05,2]
[334034782,1722698268815,9185.08791544,5e-05,2]
[334034783,1722698272568,814.91208456,5e-05,2]
[334034784,1722698272588,10000.0,5e-05,2]
[334034785,1722698272609,10000.0,5e-05,2]
[334034786,1722698272630,10000.0,5e-05,2]
[334034787,1722698272651,10000.0,5e-05,2]
[334034788,1722698272671,10000.0,5e-05,2]
[334034789,1722698272694,132835.51701733,5e-05,2]
[334034790,1722698275325,155.0,5e-05,2]
[334034791,1722698279052,155.2753588,5e-05,2]
[334034792,1722698279311,158.93327115,5e-05,2]
[334034793,1722698280334,155.0,5e-05,2]
[334034794,1722698282294,411.60345226,5e-05,2]
[334034795,1722698288366,871.55601316,5e-05,2]
[334034796,1722698288548,9273.58869818,5e-05,2]
[334034797,1722698290183,216.42011758,5e-05,2]
[334034798,1722698291245,155.0,5e-05,2]
[334034799,1722698297450,790.43228125,5e-05,2]
[334034800,1722698299264,20378.24322502,6.061e-05,2]
[334034801,1722698324785,18827.63749337,6.061e-05,2]
[334034802,1722698329075,79999.76015154,6.061e-05,2]
[334034803,1722698335661,18863.85929505,6.061e-05,2]
[334034804,1722698348468,227.60153513,5e-05,2]
[334034805,1722698351262,174.58843238,6.061e-05,2]
[334034806,1722698373535,434.5206271,6.061e-05,2]
[334034807,1722698383790,18827.63749337,7.347e-05,2]
[334034808,1722698418794,7338.83757955,8.905e-05,2]
[334034809,1722698424074,1166.79127369,8.905e-05,2]
[334034810,1722698572594,571.19856418,8.905e-05,2]
[334034861,1722699032252,-300.0,9.999e-05,2]
[334034862,1722699032263,-300.0,9.999e-05,2]
[334034863,1722699032272,-300.0,9.999e-05,2]
[334034864,1722699032282,-150.0,9.999e-05,2]
[334034865,1722699032291,-10523.3296,0.0001,2]
[334034866,1722699032300,-542.32179846,0.0001,2]
[334034867,1722699032310,-1017.48071607,0.0001093,2]
[334034869,1722699032319,-753.38422047,0.0001099,2]
[334034871,1722699032329,-179.02196653,0.00010997,2]
[334034872,1722699032339,-242.0,0.00010999,2]
[334034873,1722699032347,-420.0,0.00010999,2]
[334034874,1722699032357,-500.0,0.00010999,2]
[334034876,1722699032367,-500.0,0.00010999,2]
[334034878,1722699032376,-500.0,0.00010999,2]
[334034880,1722699032385,-608.09869511,0.00010999,2]
[334034881,1722699032395,-500.0,0.00010999,2]
[334034882,1722699032404,-500.0,0.00010999,2]
[334034884,1722699032413,-2764.58367283,0.00011,2]
[334034885,1722699032426,-177354.88385617,0.00011,2]
[334034886,1722699032439,-3449.9999995,0.00011,2]
[334034887,1722699032451,-627.85298596,0.00011,2]
[334034888,1722699032462,-1440.43885463,0.00011,2]
[334034889,1722699032473,-474.01370317,0.00011,2]
[334034890,1722699032485,-10150.10888819,0.00011,2]
[334034891,1722699032496,-310.47575573,0.00011,2]
[334034905,1722699039599,-1418.5671359,0.00011,2]
[334034906,1722699039610,-1483.64960183,0.00011,2]
[334034907,1722699039622,-6701.46418999,0.00011,2]
[334034908,1722699039705,-1798.81675118,0.00011,2]
[334034909,1722699039717,-654.18357388,0.00011,2]
[334034910,1722699039808,-38478.07088599,0.00011,2]
[334034912,1722699039902,-6215.78019,0.00011,2]
[334034936,1722699040240,-1486.83201665,0.00011,2]
[334034946,1722699040316,-70615.45794838,0.00011,2]
[334034955,1722699040405,-339.035,0.00011,2]
[334034964,1722699040494,-3387169.80949234,0.00011,2]
[334034966,1722699040507,-405486.24906779,0.00011,2]
[334034973,1722699040572,-2899416.19916363,0.00011,2]
[334034975,1722699040582,-180.14467948,0.00011599,2]
[334034977,1722699040592,-285.50273632,0.00011599,2]
[334034979,1722699040603,-428.04198009,0.00011599,2]
[334034981,1722699040614,-171.54444935,0.00011699,2]
[334034983,1722699040623,-290.9,0.00011999,2]
[334034985,1722699040633,-587.0,0.00012099,2]
[334034987,1722699040642,-428.04198009,0.00013077,2]
[334034989,1722699040652,-302.64374642,0.00013303,2]
[334034990,1722699040662,-823.0,0.00013309,2]
[334034992,1722699040671,-250.0,0.00013576,2]
[334034994,1722699040681,-961.92,0.00013701,2]
[334034997,1722699040701,-1847.41,0.00013789,2]
[334034999,1722699040711,-240.0,0.00013836,2]
[334035001,1722699040721,-167.1,0.00013973,2]
[334035002,1722699040730,-4940.9070406,0.00014,14]
[334035004,1722699040740,-480.0,0.00014383,2]
[334035006,1722699040749,-481.98,0.00014387,2]
[334035008,1722699040759,-300.34177706,0.000144,2]
[334035010,1722699040768,-541.6496,0.00014467,2]
[334035012,1722699040778,-551.06,0.00014508,2]
[334035014,1722699040787,-1152.0,0.0001464,2]
[334035016,1722699040797,-102529.629,0.00014688,2]
[334035018,1722699040806,-12383.0055,0.00014788,2]
[334035020,1722699040816,-100000.0,0.00014788,2]
[334035022,1722699040825,-66684.5326,0.00014788,2]
[334035024,1722699040835,-171.54444932,0.00014999,2]
[334035026,1722699040844,-240.0,0.00015566,2]
[334035028,1722699040854,-959.1,0.00015886,2]
[334035030,1722699040864,-250.0,0.0001594,2]
[334035032,1722699040873,-1000.0,0.00015952,2]
[334035034,1722699040884,-480.0,0.00016103,2]
[334035035,1722699040894,-579.47,0.00016144,2]
[334035037,1722699040904,-480.0,0.00016181,2]
[334035039,1722699040914,-200.0,0.00016646,2]
[334035041,1722699040923,-481.98,0.00016651,2]
[334035043,1722699040932,-4030.0,0.00017169,2]
[334035045,1722699040948,-23900.0,0.00017169,2]
[334035047,1722699040957,-388.22,0.00017241,2]
[334035049,1722699040966,-693.01,0.00017241,2]
[334035051,1722699040976,-240.0,0.00017296,2]
[334035053,1722699040986,-500.0,0.0001752,2]
[334035055,1722699040996,-480.0,0.00017979,2]
[334035056,1722699041006,-171.54444932,0.000183,2]
[334035058,1722699041015,-481.98,0.00018914,2]
[334035060,1722699041025,-240.0,0.00019025,2]
[334035062,1722699041035,-278.107355,0.00019462,2]
[334035064,1722699041044,-163.983566,0.00019462,2]
[334035066,1722699041055,-181.117562,0.00019462,2]
[334035068,1722699041065,-167.485372,0.00019462,2]
[334035070,1722699041074,-152.17628,0.00019462,2]
[334035072,1722699041084,-480.0,0.00019777,2]
[334035074,1722699041094,-167.485372,0.00019949,2]
[334035076,1722699041104,-152.17628,0.00019949,2]
[334035078,1722699041114,-7000.0,0.0002,5]
[334035080,1722699041124,-7000.0,0.0002,4]
[334035082,1722699041133,-1000.0,0.0002,9]
[334035084,1722699041143,-839.05446149,0.00020109,2]
[334035086,1722699041152,-220.66511997,0.00020109,2]
[334035106,1722699041355,-15469.99110515,0.0002038,2]
[334035108,1722699041366,-10525.57010213,0.0002038,2]
[334035110,1722699041376,-25301.89520735,0.0002038,2]
[334035112,1722699041386,-167.485372,0.00020435,2]
[334035114,1722699041399,-152.17628,0.00020435,2]
[334035116,1722699041409,-457.47636695,0.00020439,2]
[334035118,1722699041418,-167.1,0.00020447,2]
[334035120,1722699041428,-240.0,0.00020755,2]
[334035122,1722699041441,-3850.52883497,0.00020821,2]
[334035124,1722699041450,-365.42577775,0.00020899,5]
[334035126,1722699041459,-481.98,0.00021178,2]
[334035128,1722699041469,-462.65,0.00021389,2]
[334035130,1722699041479,-160.0,0.00021475,2]
[334035132,1722699041489,-480.0,0.00021574,2]
[334035134,1722699041498,-171.54444932,0.000216,2]
[334035136,1722699041511,-2000.0,0.000219,2]
[334035138,1722699041520,-150.0,0.00021918,2]
[334035140,1722699041529,-505.87,0.00021918,2]
[334035142,1722699041538,-150.0,0.00022495,2]
[334035143,1722699041548,-150.0,0.00023071,2]
[334035145,1722699041558,-180.0,0.00023205,2]
[334035147,1722699041568,-481.98,0.00023442,2]
[334035149,1722699041577,-385.71108368,0.00023451,2]
[334035151,1722699041586,-3401.38185264,0.00023451,2]
[334035153,1722699041597,-1930.20669701,0.00023555,2]
[334035155,1722699041607,-150.0,0.00023648,2]
[334035157,1722699041616,-530.42,0.00023757,2]
[334035158,1722699041625,-150.0,0.00023757,2]
[334035160,1722699041635,-300.0,0.00023757,2]
[334035162,1722699041644,-530.42,0.00023757,2]
[334035164,1722699041653,-150.0,0.00023757,2]
[334035166,1722699041662,-150.0,0.00023757,2]
[334035168,1722699041671,-150.0,0.00023757,2]
[334035169,1722699041680,-530.42,0.00023757,2]
[334035171,1722699041693,-157.49,0.00023757,2]
[334035173,1722699041702,-412.33,0.00023757,2]
[334035175,1722699041711,-2023.34906436,0.00023873,2]
[334035177,1722699041720,-3118.19667245,0.00023873,2]
[334035179,1722699041730,-686.40870172,0.00023873,2]
[334035181,1722699041738,-1404.85068933,0.00023873,2]
[334035183,1722699041748,-462.65,0.00024062,2]
[334035184,1722699041757,-1138.09658459,0.00024124,2]
[334035185,1722699041766,-3976.46597667,0.00024124,2]
[334035186,1722699041775,-439.70755762,0.00024124,2]
[334035187,1722699041784,-240.61117812,0.00024124,2]
[334035188,1722699041794,-1175.8459067,0.00024124,2]
[334035189,1722699041803,-218.72259173,0.00024124,2]
[334035190,1722699041813,-347.37102947,0.00024124,2]
[334035191,1722699041822,-160.0,0.0002416,2]
[334035192,1722699041831,-150.0,0.00024225,2]
[334035193,1722699041841,-788.0,0.00024259,2]
[334035194,1722699041851,-1000.0,0.00024418,2]
[334035195,1722699041862,-788.0,0.00024509,2]
[334035196,1722699041871,-500.0,0.00024657,9]
[334035198,1722699041880,-500.0,0.00024657,9]
[334035200,1722699041890,-500.0,0.00024657,9]
[334035202,1722699041900,-500.0,0.00024657,9]
[334035204,1722699041909,-514.72,0.00024657,9]
[334035206,1722699041918,-500.0,0.00024657,9]
[334035208,1722699041927,-500.0,0.00024657,9]
[334035210,1722699041938,-500.0,0.00024657,9]
[334035211,1722699041947,-514.71,0.00024657,9]
[334035213,1722699041956,-500.0,0.00024657,9]
[334035215,1722699041965,-500.0,0.00024657,9]
[334035217,1722699041974,-500.0,0.00024657,9]
[334035219,1722699041983,-500.16560972,0.00024657,9]
[334035221,1722699041992,-500.0,0.00024657,9]
[334035223,1722699042002,-500.0,0.00024657,9]
[334035225,1722699042011,-634.46,0.00024657,9]
[334035227,1722699042020,-500.0,0.00024657,9]
[334035229,1722699042029,-500.0,0.00024657,9]
[334035231,1722699042039,-500.0,0.00024657,9]
[334035233,1722699042048,-570.69,0.00024657,9]
[334035235,1722699042057,-500.0,0.00024657,9]
[334035237,1722699042067,-500.0,0.00024657,9]
[334035239,1722699042076,-500.0,0.00024657,9]
[334035241,1722699042085,-500.0,0.00024657,9]
[334035243,1722699042095,-500.0,0.00024657,9]
[334035245,1722699042104,-500.0,0.00024657,9]
[334035247,1722699042113,-500.0,0.00024657,9]
[334035248,1722699042122,-500.0,0.00024657,9]
[334035250,1722699042131,-500.0,0.00024657,9]
[334035252,1722699042141,-500.0,0.00024657,9]
[334035254,1722699042150,-500.0,0.00024657,9]
[334035256,1722699042159,-500.48329761,0.00024657,9]
[334035258,1722699042168,-500.0,0.00024657,9]
[334035260,1722699042178,-500.0,0.00024657,9]
[334035262,1722699042189,-500.0,0.00024657,9]
[334035263,1722699042199,-500.0,0.00024657,9]
[334035265,1722699042208,-500.0,0.00024657,9]
[334035267,1722699042217,-500.0,0.00024657,9]
[334035269,1722699042226,-609.69,0.00024657,9]
[334035271,1722699042235,-500.0,0.00024657,9]
[334035273,1722699042245,-531.94,0.00024657,9]
[334035275,1722699042254,-500.0,0.00024657,9]
[334035277,1722699042264,-551.19,0.00024657,9]
[334035279,1722699042273,-500.0,0.00024657,9]
[334035281,1722699042282,-500.0,0.00024657,9]
[334035283,1722699042291,-500.0,0.00024657,9]
[334035284,1722699042301,-500.46201007,0.00024657,9]
[334035286,1722699042310,-500.0,0.00024657,9]
[334035288,1722699042320,-289.36275959,0.00024657,60]
[334035290,1722699042329,-500.0,0.00024657,9]
[334035292,1722699042338,-500.0,0.00024657,9]
[334035294,1722699042348,-500.0,0.00024657,9]
[334035296,1722699042358,-500.0,0.00024657,9]
[334035298,1722699042367,-626.83,0.00024657,9]
[334035300,1722699042376,-500.0,0.00024657,9]
[334035301,1722699042386,-500.0,0.00024657,9]
[334035303,1722699042395,-500.0,0.00024657,9]
[334035305,1722699042405,-500.0,0.00024657,9]
[334035307,1722699042414,-500.0,0.00024657,9]
[334035309,1722699042423,-500.0,0.00024657,9]
[334035311,1722699042433,-500.0,0.00024657,9]
[334035313,1722699042445,-500.0,0.00024657,9]
[334035315,1722699042455,-500.0,0.00024657,9]
[334035317,1722699042464,-500.0,0.00024657,9]
[334035319,1722699042474,-500.0,0.00024657,9]
[334035321,1722699042483,-500.0,0.00024657,9]
[334035323,1722699042492,-500.0,0.00024657,9]
[334035325,1722699042501,-500.0,0.00024657,9]
[334035327,1722699042511,-500.0,0.00024657,9]
[334035329,1722699042522,-500.0,0.00024657,9]
[334035331,1722699042531,-500.0,0.00024657,9]
[334035333,1722699042540,-500.0,0.00024657,9]
[334035335,1722699042550,-500.0,0.00024657,9]
[334035337,1722699042559,-500.0,0.00024657,9]
[334035339,1722699042569,-500.0,0.00024657,9]
[334035341,1722699042577,-500.0,0.00024657,9]
[334035343,1722699042587,-500.0,0.00024657,9]
[334035345,1722699042596,-402.74229139,0.00024657,9]
[334035347,1722699042607,-554.57,0.00024657,9]
[334035349,1722699042616,-500.0,0.00024657,9]
[334035351,1722699042626,-500.0,0.00024657,9]
[334035353,1722699042635,-500.0,0.00024657,9]
[334035355,1722699042645,-500.0,0.00024657,9]
[334035357,1722699042655,-500.0,0.00024657,9]
[334035359,1722699042664,-500.0,0.00024657,9]
[334035361,1722699042673,-500.0,0.00024657,9]
[334035363,1722699042682,-544.48,0.00024657,9]
[334035365,1722699042695,-500.0,0.00024657,9]
[334035366,1722699042704,-500.0,0.00024657,9]
[334035368,1722699042713,-500.0,0.00024657,9]
[334035370,1722699042722,-500.0,0.00024657,9]
[334035372,1722699042731,-500.0,0.00024657,9]
[334035374,1722699042741,-500.0,0.00024657,9]
[334035376,1722699042750,-500.0,0.00024657,9]
[334035378,1722699042759,-500.0,0.00024657,9]
[334035380,1722699042769,-500.0,0.00024657,9]
[334035382,1722699042778,-500.0,0.00024657,9]
[334035384,1722699042787,-500.0,0.00024657,9]
[334035386,1722699042796,-500.0,0.00024657,9]
[334035388,1722699042805,-500.0,0.00024657,9]
[334035390,1722699042814,-500.0,0.00024657,9]
[334035392,1722699042823,-500.0,0.00024657,9]
[334035394,1722699042832,-500.0,0.00024657,9]
[334035398,1722699042842,-500.0,0.00024657,9]
[334035399,1722699042851,-500.0,0.00024657,9]
[334035402,1722699042860,-500.0,0.00024657,9]
[334035405,1722699042869,-500.0,0.00024657,9]
[334035408,1722699042879,-500.0,0.00024657,9]
[334035411,1722699042888,-500.0,0.00024657,9]
[334035413,1722699042897,-500.0,0.00024657,9]
[334035416,1722699042906,-500.0,0.00024657,9]
[334035419,1722699042915,-500.0,0.00024657,9]
[334035421,1722699042924,-500.0,0.00024657,9]
[334035423,1722699042933,-582.97,0.00024657,9]
[334035426,1722699042946,-500.0,0.00024657,9]
[334035430,1722699042956,-500.0,0.00024657,9]
[334035436,1722699042965,-500.0,0.00024657,9]
[334035442,1722699042974,-500.0,0.00024657,9]
[334035447,1722699042983,-624.37,0.00024657,9]
[334035451,1722699042992,-500.0,0.00024657,9]
[334035455,1722699043001,-500.0,0.00024657,9]
[334035459,1722699043010,-609.67,0.00024657,9]
[334035463,1722699043019,-500.0,0.00024657,9]
[334035466,1722699043028,-500.0,0.00024657,9]
[334035469,1722699043037,-500.0,0.00024657,9]
[334035472,1722699043046,-500.0,0.00024657,9]
[334035475,1722699043055,-500.0,0.00024657,9]
[334035478,1722699043064,-500.0,0.00024657,9]
[334035481,1722699043074,-500.0,0.00024657,9]
[334035484,1722699043083,-627.46,0.00024657,9]
[334035487,1722699043092,-500.0,0.00024657,9]
[334035490,1722699043102,-534.98,0.00024657,9]
[334035493,1722699043111,-500.0,0.00024657,9]
[334035496,1722699043120,-500.0,0.00024657,9]
[334035499,1722699043130,-536.24,0.00024657,9]
[334035502,1722699043139,-500.0,0.00024657,9]
[334035505,1722699043149,-16506.23,0.00024657,9]
[334035508,1722699043160,-516.84,0.00024657,9]
[334035511,1722699043170,-617.77,0.00024657,9]
[334035514,1722699043179,-500.0,0.00024657,9]
[334035517,1722699043190,-500.0,0.00024657,9]
[334035520,1722699043200,-500.0,0.00024657,9]
[334035523,1722699043209,-500.0,0.00024657,9]
[334035526,1722699043219,-500.0,0.00024657,9]
[334035529,1722699043229,-200.68830932,0.00024657,9]
[334035532,1722699043238,-500.0,0.00024657,9]
[334035535,1722699043247,-500.0,0.00024657,9]
[334035538,1722699043257,-349.84,0.00024657,9]
[334035541,1722699043266,-179.12247103,0.00024657,9]
[334035544,1722699043276,-500.0,0.00024657,9]
[334035548,1722699043286,-500.0,0.00024657,9]
[334035551,1722699043295,-500.0,0.00024657,9]
[334035554,1722699043304,-500.0,0.00024657,9]
[334035558,1722699043314,-788.0,0.00024759,2]
[334035561,1722699043324,-500.0,0.0002479,2]
[334035563,1722699043333,-150.0,0.00024802,2]
[334035566,1722699043342,-320.92,0.00024879,9]
[334035569,1722699043352,-385.37,0.00024879,9]
[334035572,1722699043361,-539.99,0.00024879,9]
[334035574,1722699043371,-622.59,0.00024879,9]
[334035576,1722699043380,-201.09,0.00024879,9]
[334035578,1722699043389,-445.47,0.00024879,9]
[334035581,1722699043399,-500.0,0.00024879,9]
[334035582,1722699043409,-237.3,0.00024879,9]
[334035585,1722699043419,-152.88,0.00024879,9]
[334035587,1722699043429,-500.0,0.00024879,9]
[334035589,1722699043445,-500.0,0.00024879,9]
[334035591,1722699043455,-500.0,0.00024879,9]
[334035593,1722699043464,-449.1,0.00024879,9]
[334035595,1722699043474,-551.99,0.00024879,9]
[334035597,1722699043483,-500.0,0.00024879,9]
[334035599,1722699043493,-268.46,0.00024879,9]
[334035601,1722699043502,-218.77,0.00024879,9]
[334035603,1722699043511,-279.99,0.00024879,9]
[334035605,1722699043523,-303.99,0.00024879,9]
[334035607,1722699043533,-500.0,0.00024879,9]
[334035609,1722699043542,-177.65,0.00024879,9]
[334035610,1722699043551,-500.0,0.00024879,9]
[334035612,1722699043561,-212.13,0.00024879,9]
[334035614,1722699043571,-389.46,0.00024879,9]
[334035616,1722699043581,-500.0,0.00024879,9]
[334035618,1722699043590,-500.0,0.00024879,9]
[334035620,1722699043600,-500.0,0.00024879,9]
[334035622,1722699043611,-629.1,0.00024879,9]
[334035625,1722699043622,-246.76127472,0.00024879,9]
[334035626,1722699043631,-500.0,0.00024879,9]
[334035628,1722699043640,-539.9,0.00024879,9]
[334035630,1722699043649,-336.93,0.00024879,9]
[334035632,1722699043658,-301.21,0.00024879,9]
[334035634,1722699043667,-265.73,0.00024879,9]
[334035636,1722699043677,-483.96,0.00024879,9]
[334035638,1722699043686,-288.77,0.00024879,9]
[334035640,1722699043696,-500.0,0.00024879,9]
[334035642,1722699043705,-500.0,0.00024879,9]
[334035644,1722699043714,-408.73,0.00024879,9]
[334035646,1722699043727,-500.0,0.00024879,9]
[334035648,1722699043736,-500.0,0.00024879,9]
[334035650,1722699043746,-25684.2702943,0.0002488,2]
[334035652,1722699043755,-347.37102947,0.00024899,2]
[334035654,1722699043765,-5399.26968187,0.00024899,2]
[334035656,1722699043774,-2747.24796354,0.00024899,2]
[334035658,1722699043783,-4473.05915228,0.00024899,2]
[334035660,1722699043793,-649.29247659,0.00024899,2]
[334035661,1722699043802,-4473.05915228,0.00024899,2]
[334035663,1722699043811,-653.07757773,0.00024899,2]
[334035665,1722699043821,-204.07484257,0.00024899,2]
[334035667,1722699043830,-234.16960797,0.00024899,2]
[334035669,1722699043839,-305.24675183,0.00024899,2]
[334035671,1722699043850,-212.32853179,0.00024899,2]
[334035673,1722699043859,-900.90079685,0.00024899,2]
[334035675,1722699043869,-259.66752911,0.00024899,2]
[334035677,1722699043878,-3000.0,0.000249,2]
[334035679,1722699043888,-3000.0,0.000249,2]
[334035681,1722699043897,-1388.7945,0.000249,2]
[334035683,1722699043906,-150.0,0.000249,6]
[334035685,1722699043915,-171.54444932,0.000249,2]
[334035687,1722699043927,-153.97,0.000249,31]
[334035689,1722699043939,-153.97,0.000249,31]
[334035691,1722699043949,-153.97,0.000249,31]
[334035693,1722699043958,-153.97,0.000249,31]
[334035695,1722699043967,-500.0,0.00024978,9]
[334035697,1722699043977,-500.0,0.00024978,9]
[334035699,1722699043987,-365.08484083,0.00024978,9]
[334035701,1722699043997,-500.0,0.00024978,9]
[334035703,1722699044006,-500.0,0.00024978,9]
[334035705,1722699044015,-317.11,0.00024978,9]
[334035707,1722699044024,-500.0,0.00024978,9]
[334035708,1722699044033,-500.0,0.00024978,9]
[334035709,1722699044043,-16506.23,0.00024978,9]
[334035710,1722699044052,-172.08,0.00024979,9]
[334035711,1722699044061,-238.8,0.00024979,9]
[334035712,1722699044070,-500.0,0.00024979,9]
[334035713,1722699044080,-500.0,0.00024979,9]
[334035714,1722699044090,-500.0,0.00024979,9]
[334035715,1722699044100,-500.0,0.00024979,9]
[334035716,1722699044109,-500.0,0.00024979,9]
[334035718,1722699044118,-607.27,0.00024979,9]
[334035720,1722699044128,-565.33,0.00024979,9]
[334035722,1722699044138,-198.76,0.00024979,9]
[334035724,1722699044147,-500.0,0.00024979,9]
[334035726,1722699044156,-465.3,0.00024979,9]
[334035728,1722699044166,-160.98,0.00024979,9]
[334035730,1722699044176,-500.0,0.00024979,9]
[334035732,1722699044185,-333.2,0.00024979,9]
[334035734,1722699044206,-438.68,0.00024979,9]
[334035736,1722699044215,-500.0,0.00024979,9]
[334035738,1722699044225,-541.37,0.00024979,9]
[334035740,1722699044234,-509.51,0.00024979,9]
[334035742,1722699044244,-475.74856104,0.00024979,9]
[334035744,1722699044254,-378.54,0.00024979,9]
[334035746,1722699044263,-492.55969,0.00024979,2]
[334035748,1722699044273,-544.74,0.00024979,9]
[334035750,1722699044283,-360.28,0.00024979,9]
[334035752,1722699044293,-500.0,0.00024979,9]
[334035754,1722699044303,-382.71,0.00024979,9]
[334035756,1722699044312,-16506.23,0.00024979,9]
[334035758,1722699044322,-16506.23,0.00024979,9]
[334035760,1722699044333,-16506.23,0.00024979,9]
[334035762,1722699044342,-16506.23,0.00024979,9]
[334035764,1722699044351,-16506.23,0.00024979,9]
[334035766,1722699044360,-500.0,0.00024979,9]
[334035768,1722699044371,-505.86148424,0.00024979,9]
[334035770,1722699044380,-211.52758062,0.00024979,2]
[334035771,1722699044389,-1836.69666447,0.00024979,2]
[334035773,1722699044399,-282.04147473,0.00024979,2]
[334035775,1722699044408,-164.23718751,0.00024979,2]
[334035777,1722699044418,-322.96231108,0.00024979,2]
[334035779,1722699044427,-626.56891585,0.00024979,2]
[334035781,1722699044437,-1222450.79390578,0.0002498,10]
[334035783,1722699044446,-572.71657932,0.0002498,2]
[334035785,1722699044456,-155.0,0.0002498,13]
[334035787,1722699044466,-1000.0,0.0002498,120]
[334035789,1722699044475,-500.0,0.0002498,120]
[334035791,1722699044484,-155.0,0.00024989,2]
[334035793,1722699044494,-155.0,0.00024989,2]
[334035795,1722699044504,-205.75981917,0.00024989,2]
[334035797,1722699044513,-188.68204315,0.00024989,2]
[334035799,1722699044523,-297.22909311,0.00024989,2]
[334035801,1722699044536,-444.451411,0.00024994,120]
[334035803,1722699044546,-200.0,0.00024994,120]
[334035805,1722699044555,-454.19419225,0.00024996,2]
[334035807,1722699044565,-155.0,0.00024996,2]